[Event "Titled Tuesday Blitz February 22 Early 2022"]
[White "Goldin, Roman"]
[Black "Brunner, Nicolas"]
[WhiteFideId "2803860"]
[BlackFideId "620246"]
[WhiteElo "2312"]
[BlackElo "2372"]
[Result "1/2-1/2"]
[Round "05"]
[TimeControl "180+1"]
[Date "2022.02.22"]
[WhiteClock "0:00:06"]
[BlackClock "0:00:11"]

1. Nf3 {[%clk 0:02:59]}  c5 {[%clk 0:02:56]} 2. e4 {[%clk 0:02:59]}  e6 {[%clk 0:02:55]} 3. c3 {[%clk 0:02:58]}  d5 {[%clk 0:02:54]} 4. exd5 {[%clk 0:02:59]}  Qxd5 {[%clk 0:02:54]} 5. d4 {[%clk 0:02:59]}  Nf6 {[%clk 0:02:54]} 6. Be2 {[%clk 0:02:59]}  cxd4 {[%clk 0:02:48]} 7. cxd4 {[%clk 0:02:57]}  Be7 {[%clk 0:02:48]} 8. Nc3 {[%clk 0:02:57]}  Qd6 {[%clk 0:02:47]} 9. O-O {[%clk 0:02:53]}  O-O {[%clk 0:02:47]} 10. Be3 {[%clk 0:02:19]}  Nc6 {[%clk 0:02:45]} 11. a3 {[%clk 0:02:19]}  b6 {[%clk 0:02:45]} 12. b4 {[%clk 0:02:18]}  Bb7 {[%clk 0:02:44]} 13. Qb3 {[%clk 0:02:17]}  Rac8 {[%clk 0:02:42]} 14. Rfd1 {[%clk 0:02:15]}  Nd5 {[%clk 0:02:36]} 15. Nxd5 {[%clk 0:02:11]}  exd5 {[%clk 0:02:36]} 16. g3 {[%clk 0:01:59]}  Bf6 {[%clk 0:02:35]} 17. Bf4 {[%clk 0:01:58]}  Qd7 {[%clk 0:02:34]} 18. Ne5 {[%clk 0:01:48]}  Bxe5 {[%clk 0:02:27]} 19. dxe5 {[%clk 0:01:47]}  d4 {[%clk 0:02:22]} 20. Bc4 {[%clk 0:01:22]}  Nxe5 {[%clk 0:02:02]} 21. Bxe5 {[%clk 0:01:09]}  Qc6 {[%clk 0:02:02]} 22. Bd5 {[%clk 0:00:57]}  Qxd5 {[%clk 0:02:01]} 23. Qxd5 {[%clk 0:00:57]}  Bxd5 {[%clk 0:02:02]} 24. Rxd4 {[%clk 0:00:57]}  Be6 {[%clk 0:02:01]} 25. Rad1 {[%clk 0:00:55]}  f6 {[%clk 0:01:59]} 26. Bd6 {[%clk 0:00:52]}  Rfd8 {[%clk 0:01:59]} 27. Kg2 {[%clk 0:00:53]}  Kf7 {[%clk 0:01:57]} 28. a4 {[%clk 0:00:45]}  Bb3 {[%clk 0:01:50]} 29. R1d3 {[%clk 0:00:18]}  Bxa4 {[%clk 0:01:47]} 30. Ra3 {[%clk 0:00:19]}  Bc6+ {[%clk 0:01:43]} 31. f3 {[%clk 0:00:17]}  Rd7 {[%clk 0:01:42]} 32. Rad3 {[%clk 0:00:12]}  Rcd8 {[%clk 0:01:40]} 33. Kf2 {[%clk 0:00:13]}  a5 {[%clk 0:01:26]} 34. bxa5 {[%clk 0:00:12]}  bxa5 {[%clk 0:01:26]} 35. Ke3 {[%clk 0:00:11]}  Ke6 {[%clk 0:01:24]} 36. Bc5 {[%clk 0:00:09]}  Rxd4 {[%clk 0:01:04]} 37. Rxd4 {[%clk 0:00:08]}  Rxd4 {[%clk 0:01:02]} 38. Bxd4 {[%clk 0:00:09]}  Kd5 {[%clk 0:01:03]} 39. g4 {[%clk 0:00:07]}  Kc4 {[%clk 0:01:02]} 40. h4 {[%clk 0:00:06]}  Kb3 {[%clk 0:00:58]} 41. h5 {[%clk 0:00:06]}  Be8 {[%clk 0:00:31]} 42. f4 {[%clk 0:00:06]}  Bd7 {[%clk 0:00:23]} 43. g5 {[%clk 0:00:05]}  fxg5 {[%clk 0:00:23]} 44. fxg5 {[%clk 0:00:04]}  g6 {[%clk 0:00:23]} 45. h6 {[%clk 0:00:04]}  Kc4 {[%clk 0:00:17]} 46. Bb2 {[%clk 0:00:03]}  Bf5 {[%clk 0:00:15]} 47. Kd2 {[%clk 0:00:03]}  a4 {[%clk 0:00:13]} 48. Kc1 {[%clk 0:00:04]}  Kb3 {[%clk 0:00:11]} 49. Bf6 {[%clk 0:00:04]}  a3 {[%clk 0:00:09]} 50. Be5 {[%clk 0:00:05]}  a2 {[%clk 0:00:09]} 51. Bf6 {[%clk 0:00:05]}  Be4 {[%clk 0:00:10]} 52. Be5 {[%clk 0:00:05]}  Bf5 {[%clk 0:00:10]} 53. Bf6 {[%clk 0:00:06]}  Be4 {[%clk 0:00:11]} 54. Be5 {[%clk 0:00:06]}  Bf5 {[%clk 0:00:11]} 1/2-1/2


[Site "https://www.chess.com"]

[Event "Titled Tuesday Blitz February 22 Early 2022"]
[White "Golizadeh, Asghar"]
[Black "Dziththauly, Ramadhan"]
[WhiteFideId "12505269"]
[BlackFideId "7105525"]
[WhiteElo "2403"]
[BlackElo "2583"]
[Result "1/2-1/2"]
[Round "05"]
[TimeControl "180+1"]
[Date "2022.02.22"]
[WhiteClock "0:00:20"]
[BlackClock "0:00:09"]

1. e4 {[%clk 0:03:00]}  c5 {[%clk 0:02:58]} 2. Nf3 {[%clk 0:02:58]}  d6 {[%clk 0:02:58]} 3. Bb5+ {[%clk 0:02:58]}  Bd7 {[%clk 0:02:57]} 4. Bxd7+ {[%clk 0:02:58]}  Nxd7 {[%clk 0:02:58]} 5. O-O {[%clk 0:02:59]}  Ngf6 {[%clk 0:02:59]} 6. Re1 {[%clk 0:02:59]}  g6 {[%clk 0:02:59]} 7. c3 {[%clk 0:03:00]}  Bg7 {[%clk 0:02:59]} 8. d4 {[%clk 0:03:00]}  cxd4 {[%clk 0:02:58]} 9. cxd4 {[%clk 0:03:01]}  Rc8 {[%clk 0:02:58]} 10. Nc3 {[%clk 0:03:02]}  O-O {[%clk 0:02:57]} 11. h3 {[%clk 0:03:01]}  a6 {[%clk 0:02:57]} 12. Bf4 {[%clk 0:03:00]}  b5 {[%clk 0:02:57]} 13. a3 {[%clk 0:02:58]}  Nb6 {[%clk 0:02:57]} 14. Rc1 {[%clk 0:02:52]}  Nc4 {[%clk 0:02:57]} 15. Qe2 {[%clk 0:02:53]}  Qa5 {[%clk 0:02:52]} 16. e5 {[%clk 0:02:43]}  dxe5 {[%clk 0:02:49]} 17. Nxe5 {[%clk 0:02:28]}  e6 {[%clk 0:02:41]} 18. Bg5 {[%clk 0:02:21]}  Nxe5 {[%clk 0:01:38]} 19. dxe5 {[%clk 0:02:07]}  Nd7 {[%clk 0:01:37]} 20. Be7 {[%clk 0:01:48]}  Rfe8 {[%clk 0:01:35]} 21. Bd6 {[%clk 0:01:48]}  f6 {[%clk 0:01:20]} 22. exf6 {[%clk 0:01:45]}  Nxf6 {[%clk 0:01:21]} 23. Rcd1 {[%clk 0:01:43]}  Qb6 {[%clk 0:01:01]} 24. Be5 {[%clk 0:01:40]}  Rcd8 {[%clk 0:00:53]} 25. Qf3 {[%clk 0:01:29]}  Rf8 {[%clk 0:00:37]} 26. Rxd8 {[%clk 0:01:27]}  Qxd8 {[%clk 0:00:37]} 27. Qc6 {[%clk 0:01:28]}  Qc8 {[%clk 0:00:33]} 28. Qb6 {[%clk 0:01:18]}  Nd5 {[%clk 0:00:28]} 29. Nxd5 {[%clk 0:01:14]}  exd5 {[%clk 0:00:28]} 30. Bxg7 {[%clk 0:01:01]}  Kxg7 {[%clk 0:00:29]} 31. Qd4+ {[%clk 0:01:00]}  Kh6 {[%clk 0:00:18]} 32. Qh4+ {[%clk 0:00:50]}  Kg7 {[%clk 0:00:17]} 33. Re7+ {[%clk 0:00:51]}  Rf7 {[%clk 0:00:17]} 34. Rxf7+ {[%clk 0:00:38]}  Kxf7 {[%clk 0:00:18]} 35. Qxh7+ {[%clk 0:00:39]}  Kf6 {[%clk 0:00:18]} 36. Qh4+ {[%clk 0:00:39]}  Kf7 {[%clk 0:00:17]} 37. Qf4+ {[%clk 0:00:39]}  Kg8 {[%clk 0:00:17]} 38. Qd6 {[%clk 0:00:36]}  Qc1+ {[%clk 0:00:16]} 39. Kh2 {[%clk 0:00:36]}  Qxb2 {[%clk 0:00:16]} 40. Qxg6+ {[%clk 0:00:35]}  Kf8 {[%clk 0:00:15]} 41. Qd6+ {[%clk 0:00:35]}  Kg7 {[%clk 0:00:14]} 42. Qe7+ {[%clk 0:00:32]}  Kg8 {[%clk 0:00:13]} 43. f4 {[%clk 0:00:33]}  Qd4 {[%clk 0:00:08]} 44. Qg5+ {[%clk 0:00:26]}  Kf7 {[%clk 0:00:08]} 45. Qf5+ {[%clk 0:00:26]}  Kg8 {[%clk 0:00:08]} 46. Kg3 {[%clk 0:00:22]}  Qe3+ {[%clk 0:00:07]} 47. Kh4 {[%clk 0:00:22]}  Qxa3 {[%clk 0:00:06]} 48. Qxd5+ {[%clk 0:00:21]}  Kg7 {[%clk 0:00:06]} 49. Qd7+ {[%clk 0:00:18]}  Kf6 {[%clk 0:00:06]} 50. Qc6+ {[%clk 0:00:17]}  Kf7 {[%clk 0:00:06]} 51. g4 {[%clk 0:00:17]}  Qe7+ {[%clk 0:00:06]} 52. g5 {[%clk 0:00:17]}  Qe1+ {[%clk 0:00:06]} 53. Kg4 {[%clk 0:00:17]}  Qe2+ {[%clk 0:00:07]} 54. Kf5 {[%clk 0:00:14]}  Qd3+ {[%clk 0:00:06]} 55. Qe4 {[%clk 0:00:14]}  Qd7+ {[%clk 0:00:06]} 56. Ke5 {[%clk 0:00:15]}  Qxh3 {[%clk 0:00:06]} 57. Kd4 {[%clk 0:00:15]}  Qd7+ {[%clk 0:00:05]} 58. Ke3 {[%clk 0:00:14]}  Qe6 {[%clk 0:00:06]} 59. f5 {[%clk 0:00:13]}  Qxe4+ {[%clk 0:00:06]} 60. Kxe4 {[%clk 0:00:14]}  a5 {[%clk 0:00:07]} 61. Kd4 {[%clk 0:00:14]}  a4 {[%clk 0:00:07]} 62. Kc3 {[%clk 0:00:15]}  a3 {[%clk 0:00:08]} 63. Kb3 {[%clk 0:00:15]}  b4 {[%clk 0:00:08]} 64. Ka2 {[%clk 0:00:15]}  Kg7 {[%clk 0:00:09]} 65. Kb3 {[%clk 0:00:16]}  Kf7 {[%clk 0:00:10]} 66. Kc2 {[%clk 0:00:16]}  Kg7 {[%clk 0:00:11]} 67. g6 {[%clk 0:00:16]}  Kf6 {[%clk 0:00:11]} 68. Kb3 {[%clk 0:00:17]}  Kg7 {[%clk 0:00:10]} 69. Ka2 {[%clk 0:00:15]}  Kf6 {[%clk 0:00:11]} 70. Kb1 {[%clk 0:00:16]}  Kg7 {[%clk 0:00:11]} 71. Ka1 {[%clk 0:00:17]}  b3 {[%clk 0:00:11]} 72. Kb1 {[%clk 0:00:17]}  Kf6 {[%clk 0:00:12]} 73. Kc1 {[%clk 0:00:17]}  Kg7 {[%clk 0:00:09]} 74. Kb1 {[%clk 0:00:18]}  Kf6 {[%clk 0:00:09]} 75. Ka1 {[%clk 0:00:19]}  Kg7 {[%clk 0:00:09]} 76. Kb1 {[%clk 0:00:20]} 1/2-1/2


[Site "https://www.chess.com"]

[Event "Titled Tuesday Blitz February 22 Early 2022"]
[White "Golubenko, Valentina"]
[Black "Araujo Filho, Luiz Antonio Coel"]
[WhiteFideId "4501993"]
[BlackFideId "2130661"]
[WhiteElo "2164"]
[BlackElo "2192"]
[Result "1-0"]
[Round "05"]
[TimeControl "180+1"]
[Date "2022.02.22"]
[WhiteClock "0:00:55"]
[BlackClock "0:00:33"]

1. d4 {[%clk 0:03:00]}  f5 {[%clk 0:02:59]} 2. c4 {[%clk 0:03:00]}  Nf6 {[%clk 0:02:59]} 3. g3 {[%clk 0:03:00]}  g6 {[%clk 0:02:58]} 4. Bg2 {[%clk 0:03:00]}  Bg7 {[%clk 0:02:58]} 5. Nc3 {[%clk 0:03:01]}  O-O {[%clk 0:02:57]} 6. d5 {[%clk 0:03:00]}  d6 {[%clk 0:02:55]} 7. Nh3 {[%clk 0:03:00]}  c5 {[%clk 0:02:54]} 8. O-O {[%clk 0:02:57]}  Na6 {[%clk 0:02:53]} 9. Nf4 {[%clk 0:02:56]}  Nc7 {[%clk 0:02:52]} 10. e4 {[%clk 0:02:54]}  fxe4 {[%clk 0:02:51]} 11. Nxe4 {[%clk 0:02:54]}  Nxe4 {[%clk 0:02:34]} 12. Bxe4 {[%clk 0:02:54]}  Bf5 {[%clk 0:02:34]} 13. Bxf5 {[%clk 0:02:53]}  Rxf5 {[%clk 0:02:33]} 14. Re1 {[%clk 0:02:52]}  Re5 {[%clk 0:02:13]} 15. Bd2 {[%clk 0:02:49]}  Qd7 {[%clk 0:02:08]} 16. Qc2 {[%clk 0:02:42]}  Rf8 {[%clk 0:02:03]} 17. Nd3 {[%clk 0:02:12]}  Ref5 {[%clk 0:01:55]} 18. Bc3 {[%clk 0:02:06]}  Bxc3 {[%clk 0:01:31]} 19. Qxc3 {[%clk 0:02:06]}  R8f7 {[%clk 0:01:32]} 20. Re3 {[%clk 0:02:02]}  a6 {[%clk 0:01:17]} 21. a4 {[%clk 0:01:59]}  b5 {[%clk 0:01:11]} 22. axb5 {[%clk 0:01:58]}  axb5 {[%clk 0:01:11]} 23. b3 {[%clk 0:01:58]}  bxc4 {[%clk 0:01:07]} 24. bxc4 {[%clk 0:01:57]}  Rf3 {[%clk 0:01:03]} 25. Rxf3 {[%clk 0:01:34]}  Rxf3 {[%clk 0:01:02]} 26. Rb1 {[%clk 0:01:27]}  Ne8 {[%clk 0:00:49]} 27. Rb8 {[%clk 0:01:16]}  Rf8 {[%clk 0:00:48]} 28. Nf4 {[%clk 0:01:11]}  Nf6 {[%clk 0:00:46]} 29. Rxf8+ {[%clk 0:01:08]}  Kxf8 {[%clk 0:00:46]} 30. Ne6+ {[%clk 0:01:08]}  Kf7 {[%clk 0:00:47]} 31. Qe3 {[%clk 0:01:06]}  Qa4 {[%clk 0:00:45]} 32. Qh6 {[%clk 0:00:58]}  Qa1+ {[%clk 0:00:43]} 33. Kg2 {[%clk 0:00:57]}  Qa8 {[%clk 0:00:38]} 34. Qg7+ {[%clk 0:00:55]}  Ke8 {[%clk 0:00:33]} 35. Qf8+ {[%clk 0:00:55]}  Kd7 {[%clk 0:00:33]} 36. Qxa8 {[%clk 0:00:55]} 1-0


[Site "https://www.chess.com"]

[Event "Titled Tuesday Blitz February 22 Early 2022"]
[White "Golubka, Petro"]
[Black "Martirosyan, Haik M."]
[WhiteFideId "14114224"]
[BlackFideId "13306553"]
[WhiteElo "2392"]
[BlackElo "2735"]
[Result "1-0"]
[Round "05"]
[TimeControl "180+1"]
[Date "2022.02.22"]
[WhiteClock "0:00:06"]
[BlackClock "0:00:02"]

1. e4 {[%clk 0:00:18]}  c5 {[%clk 0:02:54]} 2. Nc3 {[%clk 0:00:18]}  Nc6 {[%clk 0:02:52]} 3. Nf3 {[%clk 0:00:19]}  Nf6 {[%clk 0:02:48]} 4. Bb5 {[%clk 0:00:19]}  Qc7 {[%clk 0:02:44]} 5. a4 {[%clk 0:00:19]}  a6 {[%clk 0:02:44]} 6. Bxc6 {[%clk 0:00:19]}  Qxc6 {[%clk 0:02:44]} 7. d3 {[%clk 0:00:19]}  g6 {[%clk 0:02:42]} 8. O-O {[%clk 0:00:19]}  Bg7 {[%clk 0:02:42]} 9. h3 {[%clk 0:00:19]}  O-O {[%clk 0:02:42]} 10. Re1 {[%clk 0:00:20]}  d6 {[%clk 0:02:38]} 11. Bg5 {[%clk 0:00:21]}  e5 {[%clk 0:02:36]} 12. a5 {[%clk 0:00:21]}  Be6 {[%clk 0:02:34]} 13. Qd2 {[%clk 0:00:19]}  Rfe8 {[%clk 0:02:33]} 14. Bh6 {[%clk 0:00:19]}  Bh8 {[%clk 0:02:34]} 15. b3 {[%clk 0:00:19]}  Qc7 {[%clk 0:02:30]} 16. Na4 {[%clk 0:00:19]}  Nd7 {[%clk 0:02:27]} 17. Ng5 {[%clk 0:00:19]}  Bf6 {[%clk 0:02:22]} 18. Rf1 {[%clk 0:00:18]}  Qd8 {[%clk 0:02:18]} 19. Kh1 {[%clk 0:00:18]}  Nf8 {[%clk 0:02:17]} 20. Rae1 {[%clk 0:00:18]}  Rc8 {[%clk 0:02:14]} 21. f4 {[%clk 0:00:18]}  exf4 {[%clk 0:02:13]} 22. Qxf4 {[%clk 0:00:17]}  Be5 {[%clk 0:02:11]} 23. Qd2 {[%clk 0:00:17]}  Nd7 {[%clk 0:02:07]} 24. Nf3 {[%clk 0:00:16]}  Bh8 {[%clk 0:02:05]} 25. Bg5 {[%clk 0:00:16]}  Qc7 {[%clk 0:02:05]} 26. Bf4 {[%clk 0:00:16]}  Rcd8 {[%clk 0:01:59]} 27. c4 {[%clk 0:00:17]}  Bg7 {[%clk 0:01:58]} 28. Bg3 {[%clk 0:00:16]}  h6 {[%clk 0:01:55]} 29. Bf4 {[%clk 0:00:16]}  g5 {[%clk 0:01:55]} 30. Bg3 {[%clk 0:00:17]}  Nf8 {[%clk 0:01:54]} 31. Nh2 {[%clk 0:00:16]}  Ng6 {[%clk 0:01:53]} 32. Nf3 {[%clk 0:00:16]}  Rf8 {[%clk 0:01:52]} 33. d4 {[%clk 0:00:16]}  f5 {[%clk 0:01:45]} 34. exf5 {[%clk 0:00:15]}  Bxf5 {[%clk 0:01:41]} 35. Nxc5 {[%clk 0:00:14]}  Rde8 {[%clk 0:01:30]} 36. Rxe8 {[%clk 0:00:13]}  Rxe8 {[%clk 0:01:31]} 37. Nd3 {[%clk 0:00:13]}  Qd7 {[%clk 0:01:30]} 38. Kh2 {[%clk 0:00:12]}  g4 {[%clk 0:01:22]} 39. hxg4 {[%clk 0:00:11]}  Bxg4 {[%clk 0:01:23]} 40. Nf4 {[%clk 0:00:12]}  Ne7 {[%clk 0:01:23]} 41. Nh4 {[%clk 0:00:11]}  Rf8 {[%clk 0:01:19]} 42. d5 {[%clk 0:00:11]}  Be5 {[%clk 0:01:16]} 43. Qe3 {[%clk 0:00:09]}  Nf5 {[%clk 0:01:14]} 44. Nxf5 {[%clk 0:00:09]}  Rxf5 {[%clk 0:01:15]} 45. Kg1 {[%clk 0:00:08]}  Qf7 {[%clk 0:01:15]} 46. Rf2 {[%clk 0:00:09]}  Qg7 {[%clk 0:01:13]} 47. Qe4 {[%clk 0:00:08]}  Qf6 {[%clk 0:01:12]} 48. Nh5 {[%clk 0:00:08]}  Qg5 {[%clk 0:01:09]} 49. Bxe5 {[%clk 0:00:07]}  Qc1+ {[%clk 0:00:22]} 50. Kh2 {[%clk 0:00:07]}  Rxh5+ {[%clk 0:00:23]} 51. Kg3 {[%clk 0:00:08]}  Rg5 {[%clk 0:00:15]} 52. Bf4 {[%clk 0:00:06]}  Qc3+ {[%clk 0:00:16]} 53. Kh2 {[%clk 0:00:06]}  Rh5+ {[%clk 0:00:16]} 54. Kg1 {[%clk 0:00:06]}  Qa1+ {[%clk 0:00:07]} 55. Rf1 {[%clk 0:00:07]}  Qf6 {[%clk 0:00:07]} 56. Bg3 {[%clk 0:00:06]}  Bf5 {[%clk 0:00:07]} 57. Qf4 {[%clk 0:00:05]}  Rg5 {[%clk 0:00:07]} 58. Bh4 {[%clk 0:00:05]}  Rxg2+ {[%clk 0:00:05]} 59. Kxg2 {[%clk 0:00:05]}  Qg6+ {[%clk 0:00:05]} 60. Kh2 {[%clk 0:00:05]}  Qh5 {[%clk 0:00:05]} 61. Rg1+ {[%clk 0:00:06]}  Kh7 {[%clk 0:00:05]} 62. Rg3 {[%clk 0:00:07]}  Qe2+ {[%clk 0:00:04]} 63. Rg2 {[%clk 0:00:08]}  Qh5 {[%clk 0:00:05]} 64. Qg3 {[%clk 0:00:08]}  Bg6 {[%clk 0:00:05]} 65. Kg1 {[%clk 0:00:09]}  Qd1+ {[%clk 0:00:04]} 66. Qe1 {[%clk 0:00:09]}  Qh5 {[%clk 0:00:05]} 67. Qe7+ {[%clk 0:00:09]}  Bf7 {[%clk 0:00:06]} 68. Bf6 {[%clk 0:00:09]}  Qd1+ {[%clk 0:00:05]} 69. Kh2 {[%clk 0:00:08]}  Qh5+ {[%clk 0:00:06]} 70. Bh4 {[%clk 0:00:08]}  b6 {[%clk 0:00:04]} 71. axb6 {[%clk 0:00:07]}  Qf5 {[%clk 0:00:04]} 72. b7 {[%clk 0:00:07]}  Qf4+ {[%clk 0:00:05]} 73. Bg3 {[%clk 0:00:07]}  Qf5 {[%clk 0:00:02]} 74. b8=Q {[%clk 0:00:07]}  Qh5+ {[%clk 0:00:03]} 75. Bh4 {[%clk 0:00:07]}  Qf5 {[%clk 0:00:02]} 76. Qg8# {[%clk 0:00:06]} 1-0


[Site "https://www.chess.com"]

[Event "Titled Tuesday Blitz February 22 Early 2022"]
[White "Gracia Alvarez, Gerardo Antonio"]
[Black "Hess, Robert"]
[WhiteFideId "5109124"]
[BlackFideId "2022036"]
[WhiteElo "2139"]
[BlackElo "2557"]
[Result "0-1"]
[Round "05"]
[TimeControl "180+1"]
[Date "2022.02.22"]
[WhiteClock "0:00:03"]
[BlackClock "0:00:07"]

1. c4 {[%clk 0:03:00]}  g6 {[%clk 0:03:00]} 2. Nc3 {[%clk 0:02:59]}  Bg7 {[%clk 0:02:57]} 3. e4 {[%clk 0:02:58]}  d6 {[%clk 0:02:56]} 4. d4 {[%clk 0:02:57]}  Nd7 {[%clk 0:02:53]} 5. Nf3 {[%clk 0:02:54]}  h6 {[%clk 0:02:51]} 6. Be2 {[%clk 0:02:54]}  e6 {[%clk 0:02:51]} 7. O-O {[%clk 0:02:53]}  Ne7 {[%clk 0:02:52]} 8. Be3 {[%clk 0:02:48]}  b6 {[%clk 0:02:50]} 9. Qd2 {[%clk 0:02:48]}  Bb7 {[%clk 0:02:48]} 10. Ne1 {[%clk 0:02:45]}  d5 {[%clk 0:02:11]} 11. cxd5 {[%clk 0:02:28]}  exd5 {[%clk 0:02:11]} 12. exd5 {[%clk 0:02:27]}  Nf6 {[%clk 0:01:55]} 13. Bf3 {[%clk 0:02:15]}  Nfxd5 {[%clk 0:01:48]} 14. Nxd5 {[%clk 0:02:11]}  Bxd5 {[%clk 0:01:43]} 15. Rc1 {[%clk 0:02:05]}  Qd7 {[%clk 0:01:39]} 16. Qe2 {[%clk 0:02:00]}  O-O {[%clk 0:01:26]} 17. Nd3 {[%clk 0:01:51]}  Nc6 {[%clk 0:00:38]} 18. Rfd1 {[%clk 0:01:42]}  Rfe8 {[%clk 0:00:32]} 19. Nf4 {[%clk 0:01:37]}  Bxf3 {[%clk 0:00:22]} 20. Qxf3 {[%clk 0:01:38]}  Ne7 {[%clk 0:00:17]} 21. g4 {[%clk 0:01:23]}  Rad8 {[%clk 0:00:15]} 22. b3 {[%clk 0:01:11]}  c6 {[%clk 0:00:15]} 23. h3 {[%clk 0:01:09]}  Nd5 {[%clk 0:00:13]} 24. Nxd5 {[%clk 0:01:07]}  cxd5 {[%clk 0:00:14]} 25. Bf4 {[%clk 0:01:01]}  Rc8 {[%clk 0:00:11]} 26. Rxc8 {[%clk 0:00:55]}  Rxc8 {[%clk 0:00:12]} 27. Be5 {[%clk 0:00:55]}  Re8 {[%clk 0:00:09]} 28. Bxg7 {[%clk 0:00:30]}  Kxg7 {[%clk 0:00:09]} 29. Rc1 {[%clk 0:00:30]}  Re4 {[%clk 0:00:09]} 30. Qc3 {[%clk 0:00:24]}  Qe6 {[%clk 0:00:09]} 31. Rd1 {[%clk 0:00:11]}  Qf6 {[%clk 0:00:08]} 32. Kg2 {[%clk 0:00:10]}  h5 {[%clk 0:00:07]} 33. Qf3 {[%clk 0:00:08]}  Rf4 {[%clk 0:00:07]} 34. Qg3 {[%clk 0:00:08]}  hxg4 {[%clk 0:00:07]} 35. hxg4 {[%clk 0:00:08]}  Qg5 {[%clk 0:00:07]} 36. f3 {[%clk 0:00:08]}  Rf6 {[%clk 0:00:07]} 37. Qf2 {[%clk 0:00:04]}  Rc6 {[%clk 0:00:06]} 38. Qd2 {[%clk 0:00:04]}  Qf6 {[%clk 0:00:05]} 39. Qe2 {[%clk 0:00:02]}  g5 {[%clk 0:00:05]} 40. Rd2 {[%clk 0:00:02]}  Qg6 {[%clk 0:00:05]} 41. Qe5+ {[%clk 0:00:01]}  Kh7 {[%clk 0:00:05]} 42. Qxd5 {[%clk 0:00:01]}  Rd6 {[%clk 0:00:04]} 43. Qe4 {[%clk 0:00:01]}  Kg7 {[%clk 0:00:04]} 44. Qxg6+ {[%clk 0:00:01]}  Kxg6 {[%clk 0:00:05]} 45. Kf2 {[%clk 0:00:01]}  Kf6 {[%clk 0:00:05]} 46. Ke3 {[%clk 0:00:02]}  Rc6 {[%clk 0:00:05]} 47. Ke4 {[%clk 0:00:02]}  Rc1 {[%clk 0:00:06]} 48. d5 {[%clk 0:00:02]}  Re1+ {[%clk 0:00:06]} 49. Kd4 {[%clk 0:00:02]}  Ke7 {[%clk 0:00:06]} 50. Kc4 {[%clk 0:00:01]}  Kd6 {[%clk 0:00:07]} 51. Kb5 {[%clk 0:00:02]}  Re3 {[%clk 0:00:05]} 52. Ka6 {[%clk 0:00:02]}  Rxf3 {[%clk 0:00:06]} 53. Kxa7 {[%clk 0:00:02]}  Rf4 {[%clk 0:00:06]} 54. Kxb6 {[%clk 0:00:02]}  Rxg4 {[%clk 0:00:06]} 55. a4 {[%clk 0:00:03]}  Rb4+ {[%clk 0:00:07]} 56. Ka7 {[%clk 0:00:02]}  Rxb3 {[%clk 0:00:08]} 57. a5 {[%clk 0:00:03]}  f5 {[%clk 0:00:07]} 58. a6 {[%clk 0:00:03]}  f4 {[%clk 0:00:07]} 59. Ka8 {[%clk 0:00:03]}  f3 {[%clk 0:00:07]} 60. a7 {[%clk 0:00:03]}  g4 {[%clk 0:00:08]} 61. Rd4 {[%clk 0:00:03]}  g3 {[%clk 0:00:07]} 62. Rf4 {[%clk 0:00:02]}  g2 {[%clk 0:00:07]} 63. Rxf3 {[%clk 0:00:02]}  Rxf3 {[%clk 0:00:07]} 64. Kb8 {[%clk 0:00:03]}  Rb3+ {[%clk 0:00:07]} 0-1


[Site "https://www.chess.com"]

[Event "Titled Tuesday Blitz February 22 Early 2022"]
[White "Grunberg, Mihai-Lucian"]
[Black "Stanisz, Patryk"]
[WhiteFideId "1204149"]
[BlackFideId "1123106"]
[WhiteElo "2364"]
[BlackElo "1876"]
[Result "1-0"]
[Round "05"]
[TimeControl "180+1"]
[Date "2022.02.22"]
[WhiteClock "0:00:50"]
[BlackClock "0:00:03"]

1. Nf3 {[%clk 0:03:00]}  d5 {[%clk 0:02:59]} 2. d4 {[%clk 0:03:01]}  c6 {[%clk 0:02:59]} 3. c4 {[%clk 0:03:02]}  Nf6 {[%clk 0:02:59]} 4. Qc2 {[%clk 0:03:01]}  dxc4 {[%clk 0:02:55]} 5. Qxc4 {[%clk 0:02:59]}  Bf5 {[%clk 0:02:51]} 6. Nc3 {[%clk 0:02:58]}  e6 {[%clk 0:02:51]} 7. g3 {[%clk 0:02:47]}  Nbd7 {[%clk 0:02:49]} 8. Bg2 {[%clk 0:02:47]}  Be7 {[%clk 0:02:49]} 9. O-O {[%clk 0:02:46]}  O-O {[%clk 0:02:49]} 10. Rd1 {[%clk 0:02:45]}  Ne4 {[%clk 0:02:48]} 11. Ne5 {[%clk 0:02:42]}  Nxc3 {[%clk 0:02:43]} 12. bxc3 {[%clk 0:02:40]}  Nxe5 {[%clk 0:02:42]} 13. Qb3 {[%clk 0:02:36]}  Nd7 {[%clk 0:02:18]} 14. Qxb7 {[%clk 0:02:33]}  Rb8 {[%clk 0:02:11]} 15. Qxa7 {[%clk 0:02:30]}  Qc8 {[%clk 0:01:45]} 16. Bf4 {[%clk 0:02:23]}  Ra8 {[%clk 0:01:22]} 17. Qc7 {[%clk 0:02:21]}  Qxc7 {[%clk 0:01:15]} 18. Bxc7 {[%clk 0:02:22]}  Rfc8 {[%clk 0:01:16]} 19. Bf4 {[%clk 0:02:20]}  Ra3 {[%clk 0:01:10]} 20. e4 {[%clk 0:02:13]}  Bg6 {[%clk 0:01:07]} 21. c4 {[%clk 0:02:08]}  h6 {[%clk 0:00:55]} 22. Rd2 {[%clk 0:02:00]}  Nf6 {[%clk 0:00:46]} 23. Re2 {[%clk 0:01:52]}  Bh5 {[%clk 0:00:40]} 24. f3 {[%clk 0:01:49]}  Rca8 {[%clk 0:00:38]} 25. Bc1 {[%clk 0:01:43]}  Rd3 {[%clk 0:00:35]} 26. g4 {[%clk 0:01:34]}  Bg6 {[%clk 0:00:32]} 27. Be3 {[%clk 0:01:28]}  Nd7 {[%clk 0:00:24]} 28. f4 {[%clk 0:01:20]}  Raa3 {[%clk 0:00:24]} 29. Bf2 {[%clk 0:01:15]}  Nf6 {[%clk 0:00:18]} 30. h3 {[%clk 0:01:10]}  Kf8 {[%clk 0:00:10]} 31. f5 {[%clk 0:01:10]}  Bh7 {[%clk 0:00:09]} 32. e5 {[%clk 0:01:08]}  Nd7 {[%clk 0:00:09]} 33. Bxc6 {[%clk 0:01:07]}  Nb6 {[%clk 0:00:07]} 34. d5 {[%clk 0:01:03]}  Rxh3 {[%clk 0:00:05]} 35. d6 {[%clk 0:00:59]}  Bd8 {[%clk 0:00:05]} 36. d7 {[%clk 0:00:57]}  Nxc4 {[%clk 0:00:04]} 37. Bc5+ {[%clk 0:00:57]}  Kg8 {[%clk 0:00:04]} 38. Bxa3 {[%clk 0:00:57]}  Nxa3 {[%clk 0:00:05]} 39. Rf1 {[%clk 0:00:52]}  exf5 {[%clk 0:00:05]} 40. gxf5 {[%clk 0:00:52]}  Nc4 {[%clk 0:00:05]} 41. e6 {[%clk 0:00:51]}  fxe6 {[%clk 0:00:03]} 42. fxe6 {[%clk 0:00:51]}  Bb6+ {[%clk 0:00:03]} 43. Kg2 {[%clk 0:00:51]}  Bd8 {[%clk 0:00:03]} 44. Kxh3 {[%clk 0:00:50]} 1-0


[Site "https://www.chess.com"]